[Event "Late-Titled-Tuesday-Blitz-September-26-2023"]
[Site "Chess.com"]
[Date "2023.09.26"]
[Round "7"]
[White "Inepton_Fermion"]
[Black "Saif_Malek04"]
[Result "0-1"]
[WhiteElo "2363"]
[BlackElo "2576"]
[TimeControl "180+1"]
[EndTime "15:13:05 PDT"]
[Termination "Saif_Malek04 won by resignation"]

1. Nf3 {[%clk 0:02:53.7]} 1... c6 {[%clk 0:03:00.9]} 2. b3 {[%clk 0:02:54.2]}
2... d6 {[%clk 0:03:01.8]} 3. Bb2 {[%clk 0:02:54.9]} 3... Nd7 {[%clk 0:03:02.7]}
4. d4 {[%clk 0:02:55.3]} 4... Ngf6 {[%clk 0:03:02.2]} 5. g3 {[%clk 0:02:52.5]}
5... g6 {[%clk 0:03:02.6]} 6. Bg2 {[%clk 0:02:53.4]} 6... Bg7 {[%clk 0:03:03.3]}
7. O-O {[%clk 0:02:54]} 7... O-O {[%clk 0:03:04]} 8. c4 {[%clk 0:02:54.6]} 8...
Qc7 {[%clk 0:03:04.5]} 9. Nc3 {[%clk 0:02:54.6]} 9... e5 {[%clk 0:03:04.9]} 10.
e4 {[%clk 0:02:54.9]} 10... Re8 {[%clk 0:03:04.4]} 11. Re1 {[%clk 0:02:55.5]}
11... Nf8 {[%clk 0:03:03.9]} 12. h3 {[%clk 0:02:47.5]} 12... h6 {[%clk
0:03:02.4]} 13. Qd2 {[%clk 0:02:40.1]} 13... g5 {[%clk 0:03:01.4]} 14. d5 {[%clk
0:02:10.5]} 14... c5 {[%clk 0:02:52.5]} 15. Nd1 {[%clk 0:01:58.2]} 15... g4
{[%clk 0:02:50.2]} 16. hxg4 {[%clk 0:01:59.1]} 16... Nxg4 {[%clk 0:02:50.7]} 17.
Ne3 {[%clk 0:01:53.9]} 17... Nxe3 {[%clk 0:02:45.8]} 18. Qxe3 {[%clk 0:01:54.8]}
18... f5 {[%clk 0:02:42.7]} 19. exf5 {[%clk 0:01:46.4]} 19... Bxf5 {[%clk
0:02:43.6]} 20. Nh4 {[%clk 0:01:47]} 20... Bh7 {[%clk 0:02:40.8]} 21. Be4 {[%clk
0:01:44.9]} 21... Qf7 {[%clk 0:02:38.8]} 22. Bxh7+ {[%clk 0:01:38.4]} 22... Nxh7
{[%clk 0:02:38.6]} 23. Rf1 {[%clk 0:01:10.6]} 23... Qh5 {[%clk 0:02:31]} 24. Qe4
{[%clk 0:00:56.9]} 24... Ng5 {[%clk 0:02:24.8]} 25. Qg6 {[%clk 0:00:36.2]} 25...
Qg4 {[%clk 0:02:02]} 26. Kg2 {[%clk 0:00:30]} 26... Rf8 {[%clk 0:01:53.2]} 27.
f3 {[%clk 0:00:25.3]} 27... Qh3+ {[%clk 0:01:42.6]} 28. Kf2 {[%clk 0:00:22.7]}
28... Qh2+ {[%clk 0:01:30.9]} 29. Ke3 {[%clk 0:00:18.3]} 29... Qxb2 {[%clk
0:01:25.3]} 30. Nf5 {[%clk 0:00:16.1]} 30... Qc3+ {[%clk 0:01:24.7]} 31. Kf2
{[%clk 0:00:09.5]} 31... Qc2+ {[%clk 0:01:24.6]} 32. Kg1 {[%clk 0:00:08.2]}
32... Qxf5 {[%clk 0:01:21.4]} 0-1

[Event "Late-Titled-Tuesday-Blitz-September-26-2023"]
[Site "Chess.com"]
[Date "2023.09.26"]
[Round "7"]
[White "dadice10"]
[Black "elcala"]
[Result "1-0"]
[WhiteElo "2242"]
[BlackElo "1718"]
[TimeControl "180+1"]
[EndTime "15:13:23 PDT"]
[Termination "dadice10 won by resignation"]

1. e4 {[%clk 0:03:00.9]} 1... d5 {[%clk 0:03:00]} 2. exd5 {[%clk 0:02:58.8]}
2... Qxd5 {[%clk 0:03:00.9]} 3. Nc3 {[%clk 0:02:56.9]} 3... Qd6 {[%clk
0:03:01.8]} 4. d4 {[%clk 0:02:55.5]} 4... Nf6 {[%clk 0:03:02.2]} 5. Nf3 {[%clk
0:02:52.6]} 5... a6 {[%clk 0:03:01.3]} 6. g3 {[%clk 0:02:50.5]} 6... Bg4 {[%clk
0:03:00.8]} 7. Bg2 {[%clk 0:02:48.2]} 7... e6 {[%clk 0:02:57.8]} 8. h3 {[%clk
0:02:48.1]} 8... Bxf3 {[%clk 0:02:56.3]} 9. Qxf3 {[%clk 0:02:45.6]} 9... Nc6
{[%clk 0:02:55.2]} 10. Be3 {[%clk 0:02:38.6]} 10... O-O-O {[%clk 0:02:52.8]} 11.
O-O-O {[%clk 0:02:37.7]} 11... Nd5 {[%clk 0:02:31.8]} 12. Nxd5 {[%clk
0:02:35.7]} 12... Qxd5 {[%clk 0:02:31.8]} 13. Qxd5 {[%clk 0:02:34.4]} 13... exd5
{[%clk 0:02:32.7]} 14. c3 {[%clk 0:02:30.8]} 14... Be7 {[%clk 0:02:28.5]} 15.
Rhe1 {[%clk 0:02:27.2]} 15... Rhe8 {[%clk 0:02:28]} 16. Bf4 {[%clk 0:02:26.3]}
16... g5 {[%clk 0:02:10.4]} 17. Bd2 {[%clk 0:02:24.8]} 17... h6 {[%clk
0:02:07.3]} 18. Kc2 {[%clk 0:02:23.5]} 18... Rg8 {[%clk 0:01:47]} 19. f4 {[%clk
0:02:14.8]} 19... f6 {[%clk 0:01:44.1]} 20. g4 {[%clk 0:02:12.7]} 20... Rg7
{[%clk 0:01:27.9]} 21. Bf3 {[%clk 0:02:02.7]} 21... Bf8 {[%clk 0:01:26.1]} 22.
Re6 {[%clk 0:01:58.5]} 22... Rd6 {[%clk 0:01:12.1]} 23. Rxd6 {[%clk 0:01:55.7]}
23... Bxd6 {[%clk 0:01:12.3]} 24. Bxd5 {[%clk 0:01:55.3]} 24... Bxf4 {[%clk
0:01:11.9]} 25. Bxf4 {[%clk 0:01:52.5]} 25... gxf4 {[%clk 0:01:12.8]} 26. Rf1
{[%clk 0:01:47.7]} 26... Kd7 {[%clk 0:00:56]} 27. Rxf4 {[%clk 0:01:45.1]} 27...
Rg6 {[%clk 0:00:45.7]} 28. Bxc6+ {[%clk 0:01:39.8]} 28... Kxc6 {[%clk
0:00:43.2]} 29. Rf5 {[%clk 0:01:39.8]} 29... Kd6 {[%clk 0:00:37.8]} 30. Kd3
{[%clk 0:01:39.6]} 30... Ke6 {[%clk 0:00:36.9]} 31. Rh5 {[%clk 0:01:39.2]} 31...
b6 {[%clk 0:00:34.1]} 32. Ke4 {[%clk 0:01:38.9]} 32... c6 {[%clk 0:00:32.8]} 33.
c4 {[%clk 0:01:38.4]} 33... b5 {[%clk 0:00:30.4]} 34. b3 {[%clk 0:01:37.4]}
34... Kf7 {[%clk 0:00:13.5]} 35. Rc5 {[%clk 0:01:31.4]} 35... f5+ {[%clk
0:00:11.2]} 36. Kxf5 {[%clk 0:01:27.3]} 36... Rg5+ {[%clk 0:00:10.1]} 37. Kf4
{[%clk 0:01:26.8]} 37... Rxc5 {[%clk 0:00:09.9]} 38. dxc5 {[%clk 0:01:27.3]}
38... Kf6 {[%clk 0:00:09.3]} 39. cxb5 {[%clk 0:01:22.6]} 39... axb5 {[%clk
0:00:10.2]} 40. a4 {[%clk 0:01:21.3]} 1-0

[Event "Late-Titled-Tuesday-Blitz-September-26-2023"]
[Site "Chess.com"]
[Date "2023.09.26"]
[Round "7"]
[White "carloseduar100"]
[Black "szachmistrz2500"]
[Result "0-1"]
[WhiteElo "2316"]
[BlackElo "2447"]
[TimeControl "180+1"]
[EndTime "15:13:28 PDT"]
[Termination "szachmistrz2500 won by resignation"]

1. d4 {[%clk 0:02:51.8]} 1... Nf6 {[%clk 0:02:59.5]} 2. Bg5 {[%clk 0:02:51.5]}
2... e6 {[%clk 0:02:52.7]} 3. e4 {[%clk 0:02:51.3]} 3... h6 {[%clk 0:02:51.9]}
4. Bxf6 {[%clk 0:02:34.9]} 4... Qxf6 {[%clk 0:02:52.8]} 5. c3 {[%clk 0:02:35.8]}
5... d6 {[%clk 0:02:51.6]} 6. Nf3 {[%clk 0:02:36.3]} 6... e5 {[%clk 0:02:51.2]}
7. dxe5 {[%clk 0:02:35.6]} 7... dxe5 {[%clk 0:02:50.9]} 8. Qd5 {[%clk
0:02:34.4]} 8... Bd6 {[%clk 0:02:44]} 9. Nbd2 {[%clk 0:02:31.6]} 9... c6 {[%clk
0:02:35.4]} 10. Qb3 {[%clk 0:02:31.5]} 10... O-O {[%clk 0:02:31.1]} 11. Nc4
{[%clk 0:02:23.5]} 11... Bc7 {[%clk 0:02:29]} 12. O-O-O {[%clk 0:02:20.2]} 12...
Na6 {[%clk 0:02:28.3]} 13. Ne3 {[%clk 0:02:14.9]} 13... b5 {[%clk 0:02:18.6]}
14. Be2 {[%clk 0:02:03.9]} 14... Nc5 {[%clk 0:02:18]} 15. Qc2 {[%clk 0:02:00]}
15... Be6 {[%clk 0:02:16.6]} 16. Kb1 {[%clk 0:01:57.9]} 16... a5 {[%clk
0:02:14.9]} 17. Rhe1 {[%clk 0:01:50.9]} 17... a4 {[%clk 0:02:11.9]} 18. g4
{[%clk 0:01:39.5]} 18... Rfd8 {[%clk 0:01:58.4]} 19. Nf5 {[%clk 0:01:39.3]}
19... Bb6 {[%clk 0:01:40.7]} 20. Rxd8+ {[%clk 0:01:39.2]} 20... Rxd8 {[%clk
0:01:39.9]} 21. Rd1 {[%clk 0:01:40.1]} 21... Rxd1+ {[%clk 0:01:35.8]} 22. Bxd1
{[%clk 0:01:40.7]} 22... Kh7 {[%clk 0:01:24]} 23. h4 {[%clk 0:01:39.5]} 23... g6
{[%clk 0:01:22.4]} 24. g5 {[%clk 0:01:34.5]} 24... hxg5 {[%clk 0:01:22.1]} 25.
Nxg5+ {[%clk 0:01:14]} 25... Kg8 {[%clk 0:01:17.5]} 26. Ne3 {[%clk 0:00:50.3]}
26... Qf4 {[%clk 0:01:06.1]} 27. Nxe6 {[%clk 0:00:46.3]} 27... Nxe6 {[%clk
0:01:06.1]} 28. h5 {[%clk 0:00:43.9]} 28... Bxe3 {[%clk 0:00:55.1]} 29. fxe3
{[%clk 0:00:44.6]} 29... Qxe3 {[%clk 0:00:55.3]} 30. hxg6 {[%clk 0:00:45.1]}
30... fxg6 {[%clk 0:00:55.3]} 31. Qg2 {[%clk 0:00:40.6]} 31... Nf4 {[%clk
0:00:51.9]} 32. Qf1 {[%clk 0:00:32.7]} 32... Qd3+ {[%clk 0:00:48.2]} 33. Bc2
{[%clk 0:00:33.6]} 33... Qxf1+ {[%clk 0:00:47.8]} 0-1

[Event "Late-Titled-Tuesday-Blitz-September-26-2023"]
[Site "Chess.com"]
[Date "2023.09.26"]
[Round "7"]
[White "Cmorales2001"]
[Black "stregachess"]
[Result "1-0"]
[WhiteElo "2430"]
[BlackElo "2089"]
[TimeControl "180+1"]
[EndTime "15:13:33 PDT"]
[Termination "Cmorales2001 won by resignation"]

1. e4 {[%clk 0:03:00.9]} 1... c5 {[%clk 0:02:59.2]} 2. Nf3 {[%clk 0:02:59.3]}
2... d6 {[%clk 0:02:58.8]} 3. Bb5+ {[%clk 0:02:57]} 3... Bd7 {[%clk 0:02:58.4]}
4. Bxd7+ {[%clk 0:02:56.2]} 4... Nxd7 {[%clk 0:02:58.2]} 5. O-O {[%clk
0:02:56.9]} 5... Ngf6 {[%clk 0:02:57.4]} 6. Re1 {[%clk 0:02:57.5]} 6... g6
{[%clk 0:02:57.6]} 7. c3 {[%clk 0:02:56.3]} 7... Bg7 {[%clk 0:02:56.5]} 8. d4
{[%clk 0:02:57.2]} 8... cxd4 {[%clk 0:02:54.1]} 9. cxd4 {[%clk 0:02:58.1]} 9...
O-O {[%clk 0:02:53.4]} 10. Nc3 {[%clk 0:02:56.2]} 10... Rc8 {[%clk 0:02:50.5]}
11. Bg5 {[%clk 0:02:51.1]} 11... h6 {[%clk 0:02:24.9]} 12. Bd2 {[%clk
0:02:46.7]} 12... Nb6 {[%clk 0:02:22.9]} 13. b3 {[%clk 0:02:43.7]} 13... Kh7
{[%clk 0:02:11.1]} 14. Qe2 {[%clk 0:02:40.8]} 14... Re8 {[%clk 0:02:09.6]} 15.
e5 {[%clk 0:02:36.8]} 15... Nfd5 {[%clk 0:02:03.6]} 16. Nxd5 {[%clk 0:02:35.7]}
16... Nxd5 {[%clk 0:02:03.2]} 17. e6 {[%clk 0:02:36.2]} 17... f6 {[%clk
0:01:54.4]} 18. Qd3 {[%clk 0:02:30.7]} 18... f5 {[%clk 0:01:48.7]} 19. h4 {[%clk
0:02:29.6]} 19... Rg8 {[%clk 0:01:45.2]} 20. h5 {[%clk 0:02:28.6]} 20... Qe8
{[%clk 0:01:45.5]} 21. Nh4 {[%clk 0:02:24.2]} 21... Bf6 {[%clk 0:01:24.7]} 22.
Nxg6 {[%clk 0:02:23.2]} 22... Rxg6 {[%clk 0:01:25]} 23. Qxf5 {[%clk 0:02:16.7]}
23... Nb6 {[%clk 0:01:16.2]} 24. Rac1 {[%clk 0:02:04.1]} 24... Kg7 {[%clk
0:01:10.8]} 25. hxg6 {[%clk 0:02:01]} 25... Qxg6 {[%clk 0:01:05]} 26. Qxg6+
{[%clk 0:01:59.6]} 26... Kxg6 {[%clk 0:01:05.1]} 27. Rxc8 {[%clk 0:01:59.5]}
27... Nxc8 {[%clk 0:01:04.8]} 28. Rc1 {[%clk 0:01:54.6]} 28... Nb6 {[%clk
0:01:04.7]} 29. Rc7 {[%clk 0:01:52.8]} 29... Bxd4 {[%clk 0:00:57]} 30. Rxe7
{[%clk 0:01:51.4]} 30... Kf6 {[%clk 0:00:57.3]} 31. Rxb7 {[%clk 0:01:48.9]}
31... Nd5 {[%clk 0:00:54.7]} 32. Bxh6 {[%clk 0:01:43.4]} 32... Kxe6 {[%clk
0:00:54.4]} 33. Bd2 {[%clk 0:01:39.7]} 33... Nf6 {[%clk 0:00:50.7]} 34. Kf1
{[%clk 0:01:38.7]} 34... a6 {[%clk 0:00:49.1]} 35. Ke2 {[%clk 0:01:37.8]} 35...
Nd5 {[%clk 0:00:45.8]} 36. f4 {[%clk 0:01:31.8]} 36... Kf5 {[%clk 0:00:43.5]}
37. Kf3 {[%clk 0:01:31.4]} 37... Nf6 {[%clk 0:00:28.7]} 38. Re7 {[%clk
0:01:17.2]} 38... Nd5 {[%clk 0:00:21.2]} 39. g4+ {[%clk 0:01:15.3]} 39... Kf6
{[%clk 0:00:21.5]} 40. Rb7 {[%clk 0:01:14]} 40... Ke6 {[%clk 0:00:14.1]} 41. Ke4
{[%clk 0:01:08.2]} 41... Bc5 {[%clk 0:00:10.6]} 42. f5+ {[%clk 0:01:06.6]} 1-0

[Event "Late-Titled-Tuesday-Blitz-September-26-2023"]
[Site "Chess.com"]
[Date "2023.09.26"]
[Round "7"]
[White "Dubs123"]
[Black "Taran2004"]
[Result "0-1"]
[WhiteElo "2353"]
[BlackElo "2452"]
[TimeControl "180+1"]
[EndTime "15:13:34 PDT"]
[Termination "Taran2004 won by resignation"]

1. d4 {[%clk 0:03:00.9]} 1... Nf6 {[%clk 0:02:58.8]} 2. c4 {[%clk 0:03:01]} 2...
c5 {[%clk 0:02:57.3]} 3. d5 {[%clk 0:03:00.7]} 3... b5 {[%clk 0:02:57.5]} 4.
cxb5 {[%clk 0:02:57.7]} 4... a6 {[%clk 0:02:57.7]} 5. e3 {[%clk 0:02:52.5]} 5...
d6 {[%clk 0:02:54.5]} 6. Nc3 {[%clk 0:02:50.9]} 6... g6 {[%clk 0:02:53.9]} 7. a4
{[%clk 0:02:50.9]} 7... Bg7 {[%clk 0:02:53.2]} 8. e4 {[%clk 0:02:51.1]} 8... O-O
{[%clk 0:02:51.6]} 9. Nf3 {[%clk 0:02:51]} 9... axb5 {[%clk 0:02:48]} 10. Bxb5
{[%clk 0:02:49.5]} 10... Ba6 {[%clk 0:02:48.1]} 11. Bd2 {[%clk 0:02:45]} 11...
Qb6 {[%clk 0:02:42.5]} 12. O-O {[%clk 0:02:42.6]} 12... Nbd7 {[%clk 0:02:29.7]}
13. Re1 {[%clk 0:02:34.1]} 13... Bxb5 {[%clk 0:02:27.3]} 14. axb5 {[%clk
0:02:31.5]} 14... Ng4 {[%clk 0:02:21.7]} 15. Qe2 {[%clk 0:02:16.4]} 15... Rfb8
{[%clk 0:02:09.6]} 16. h3 {[%clk 0:02:07.9]} 16... Nge5 {[%clk 0:02:06]} 17.
Nxe5 {[%clk 0:02:07.6]} 17... Bxe5 {[%clk 0:02:03.3]} 18. f4 {[%clk 0:01:59.6]}
18... Bg7 {[%clk 0:01:46.4]} 19. Kh1 {[%clk 0:01:53]} 19... Nf6 {[%clk
0:01:43.6]} 20. Ra6 {[%clk 0:01:44.9]} 20... Rxa6 {[%clk 0:01:41.2]} 21. bxa6
{[%clk 0:01:45.8]} 21... Qxb2 {[%clk 0:01:41.4]} 22. Rb1 {[%clk 0:01:45.5]}
22... Qxb1+ {[%clk 0:01:40.5]} 23. Nxb1 {[%clk 0:01:45.3]} 23... Rxb1+ {[%clk
0:01:40.9]} 24. Kh2 {[%clk 0:01:45.3]} 24... Ra1 {[%clk 0:01:41.1]} 25. Bc3
{[%clk 0:01:43.8]} 25... Ra3 {[%clk 0:01:31.8]} 26. Bxf6 {[%clk 0:01:28]} 26...
Bxf6 {[%clk 0:01:28.8]} 27. Qb5 {[%clk 0:01:16.8]} 27... c4 {[%clk 0:01:26.1]}
28. Qxc4 {[%clk 0:01:14.6]} 28... Kg7 {[%clk 0:01:22.2]} 29. Qb5 {[%clk
0:00:59.7]} 29... Bd4 {[%clk 0:01:19.6]} 30. Qb4 {[%clk 0:00:59.2]} 30... Rd3
{[%clk 0:01:19.4]} 31. Qa4 {[%clk 0:00:44.9]} 31... Ba7 {[%clk 0:01:11.5]} 32.
Qd7 {[%clk 0:00:44]} 32... Bd4 {[%clk 0:01:11.4]} 33. Qxe7 {[%clk 0:00:39.1]}
33... h5 {[%clk 0:01:10.9]} 34. Qxd6 {[%clk 0:00:38.5]} 34... h4 {[%clk
0:01:07.3]} 35. f5 {[%clk 0:00:13.4]} 35... Bf2 {[%clk 0:01:00.9]} 36. a7 {[%clk
0:00:13]} 36... Bg3+ {[%clk 0:00:55.8]} 0-1

[Event "Late-Titled-Tuesday-Blitz-September-26-2023"]
[Site "Chess.com"]
[Date "2023.09.26"]
[Round "7"]
[White "Zavgorodniy_Sergiy"]
[Black "traack"]
[Result "1/2-1/2"]
[WhiteElo "2575"]
[BlackElo "2403"]
[TimeControl "180+1"]
[EndTime "15:13:36 PDT"]
[Termination "Game drawn by repetition"]

1. d4 {[%clk 0:02:57.2]} 1... Nf6 {[%clk 0:02:59.3]} 2. c4 {[%clk 0:02:57.1]}
2... e6 {[%clk 0:02:59.5]} 3. Nf3 {[%clk 0:02:57]} 3... d5 {[%clk 0:02:58.7]} 4.
e3 {[%clk 0:02:57.3]} 4... Be7 {[%clk 0:02:57.5]} 5. Nbd2 {[%clk 0:02:57.1]}
5... O-O {[%clk 0:02:58.1]} 6. Bd3 {[%clk 0:02:57.4]} 6... b6 {[%clk 0:02:58.6]}
7. O-O {[%clk 0:02:57.3]} 7... Bb7 {[%clk 0:02:59]} 8. Qe2 {[%clk 0:02:57.6]}
8... Nbd7 {[%clk 0:02:56.9]} 9. e4 {[%clk 0:02:58]} 9... dxe4 {[%clk 0:02:54.5]}
10. Nxe4 {[%clk 0:02:58.9]} 10... Nxe4 {[%clk 0:02:54.9]} 11. Bxe4 {[%clk
0:02:59.8]} 11... Bxe4 {[%clk 0:02:55.2]} 12. Qxe4 {[%clk 0:03:00.7]} 12... Nf6
{[%clk 0:02:55.7]} 13. Qe2 {[%clk 0:03:01.2]} 13... c5 {[%clk 0:02:54.8]} 14.
Rd1 {[%clk 0:03:01.5]} 14... Qc7 {[%clk 0:02:48.8]} 15. b3 {[%clk 0:03:01.7]}
15... Rfd8 {[%clk 0:02:48.3]} 16. Bb2 {[%clk 0:03:01.7]} 16... Rac8 {[%clk
0:02:26.5]} 17. Rd3 {[%clk 0:02:58.7]} 17... h6 {[%clk 0:02:24.2]} 18. Rad1
{[%clk 0:02:58.1]} 18... Rd7 {[%clk 0:02:07.8]} 19. Ne5 {[%clk 0:02:57.1]} 19...
Rdd8 {[%clk 0:02:07.6]} 20. h3 {[%clk 0:02:52.7]} 20... cxd4 {[%clk 0:02:03.4]}
21. Bxd4 {[%clk 0:02:48.7]} 21... a6 {[%clk 0:01:45.8]} 22. a4 {[%clk 0:02:48]}
22... Qb7 {[%clk 0:01:39.1]} 23. Kf1 {[%clk 0:02:44.9]} 23... b5 {[%clk
0:01:38]} 24. axb5 {[%clk 0:02:45]} 24... axb5 {[%clk 0:01:38.1]} 25. Ba1 {[%clk
0:02:34.2]} 25... Rxd3 {[%clk 0:01:35.9]} 26. Qxd3 {[%clk 0:02:27.8]} 26... bxc4
{[%clk 0:01:34.3]} 27. bxc4 {[%clk 0:02:28.7]} 27... Rd8 {[%clk 0:01:31.2]} 28.
Qe2 {[%clk 0:02:27.9]} 28... Rxd1+ {[%clk 0:01:31.7]} 29. Qxd1 {[%clk
0:02:28.8]} 29... Qa6 {[%clk 0:01:30.1]} 30. Kg1 {[%clk 0:02:19.6]} 30... Ne4
{[%clk 0:01:25.2]} 31. Bd4 {[%clk 0:02:09.9]} 31... Bf6 {[%clk 0:01:21]} 32. Qf3
{[%clk 0:01:35.6]} 32... Nd2 {[%clk 0:01:14.7]} 33. Qh5 {[%clk 0:00:53.2]} 33...
Nxc4 {[%clk 0:01:07.8]} 34. Qxf7+ {[%clk 0:00:51.9]} 34... Kh7 {[%clk
0:00:59.3]} 35. Qg6+ {[%clk 0:00:49.9]} 35... Kg8 {[%clk 0:00:59.7]} 36. Qe8+
{[%clk 0:00:42.9]} 36... Kh7 {[%clk 0:00:59.3]} 37. Qg6+ {[%clk 0:00:31.1]}
37... Kg8 {[%clk 0:00:59.2]} 38. Qf7+ {[%clk 0:00:22.8]} 38... Kh7 {[%clk
0:00:58.8]} 39. Qg6+ {[%clk 0:00:11.5]} 1/2-1/2

[Event "Late-Titled-Tuesday-Blitz-September-26-2023"]
[Site "Chess.com"]
[Date "2023.09.26"]
[Round "7"]
[White "Korchmar_Vasiliy"]
[Black "jcibarra"]
[Result "0-1"]
[WhiteElo "2685"]
[BlackElo "2947"]
[TimeControl "180+1"]
[EndTime "15:13:37 PDT"]
[Termination "jcibarra won by resignation"]

1. e4 {[%clk 0:03:00.9]} 1... c5 {[%clk 0:02:59.6]} 2. d4 {[%clk 0:03:00.9]}
2... cxd4 {[%clk 0:02:59.5]} 3. Qxd4 {[%clk 0:03:01.8]} 3... Nc6 {[%clk
0:02:53]} 4. Qd3 {[%clk 0:03:01.9]} 4... e6 {[%clk 0:02:48.5]} 5. Nc3 {[%clk
0:03:01.6]} 5... Nf6 {[%clk 0:02:46.9]} 6. Bf4 {[%clk 0:03:01.4]} 6... d5 {[%clk
0:02:39.4]} 7. exd5 {[%clk 0:03:00.4]} 7... Nxd5 {[%clk 0:02:28.5]} 8. Nxd5
{[%clk 0:02:59.6]} 8... exd5 {[%clk 0:02:26.9]} 9. O-O-O {[%clk 0:02:58.9]} 9...
Be6 {[%clk 0:02:20.6]} 10. Nf3 {[%clk 0:02:57.4]} 10... Bc5 {[%clk 0:02:15.5]}
11. Ng5 {[%clk 0:02:53.5]} 11... Qf6 {[%clk 0:02:06.5]} 12. Nxe6 {[%clk
0:02:45.3]} 12... fxe6 {[%clk 0:02:05.9]} 13. Be3 {[%clk 0:02:05.4]} 13... Bxe3+
{[%clk 0:01:55.1]} 14. Qxe3 {[%clk 0:02:01.6]} 14... O-O {[%clk 0:01:54.5]} 15.
f3 {[%clk 0:01:55.9]} 15... Rac8 {[%clk 0:01:48.3]} 16. Kb1 {[%clk 0:01:52.2]}
16... Rfd8 {[%clk 0:01:45.4]} 17. Bd3 {[%clk 0:01:42.4]} 17... a6 {[%clk
0:01:28]} 18. f4 {[%clk 0:01:37.2]} 18... Nb4 {[%clk 0:01:19.2]} 19. Rhe1 {[%clk
0:01:36.8]} 19... Rd6 {[%clk 0:01:15.9]} 20. g3 {[%clk 0:01:22.4]} 20... Rdc6
{[%clk 0:01:03.4]} 21. c3 {[%clk 0:01:21.2]} 21... Nxd3 {[%clk 0:01:03.2]} 22.
Qxd3 {[%clk 0:01:18.2]} 22... b5 {[%clk 0:01:02.9]} 23. Re5 {[%clk 0:01:07.1]}
23... h6 {[%clk 0:00:54.2]} 24. Rde1 {[%clk 0:01:06.5]} 24... Rb6 {[%clk
0:00:49]} 25. Rxe6 {[%clk 0:00:47.5]} 25... Rxe6 {[%clk 0:00:48.7]} 26. Qxd5
{[%clk 0:00:47.8]} 26... Re8 {[%clk 0:00:36.2]} 27. f5 {[%clk 0:00:47.8]} 27...
Qd8 {[%clk 0:00:20.2]} 28. Qb3 {[%clk 0:00:33.5]} 28... Qd3+ {[%clk 0:00:16.6]}
29. Ka1 {[%clk 0:00:31.6]} 29... Qxf5 {[%clk 0:00:16.2]} 0-1

[Event "Late-Titled-Tuesday-Blitz-September-26-2023"]
[Site "Chess.com"]
[Date "2023.09.26"]
[Round "7"]
[White "ozates"]
[Black "bylavochka"]
[Result "1-0"]
[WhiteElo "2533"]
[BlackElo "2281"]
[TimeControl "180+1"]
[EndTime "15:13:51 PDT"]
[Termination "ozates won by checkmate"]

1. c4 {[%clk 0:02:54.3]} 1... c5 {[%clk 0:02:59.2]} 2. Nc3 {[%clk 0:02:52.7]}
2... Nc6 {[%clk 0:02:59.3]} 3. g3 {[%clk 0:02:53.4]} 3... g6 {[%clk 0:02:59.3]}
4. Bg2 {[%clk 0:02:54]} 4... Bg7 {[%clk 0:02:58.8]} 5. e4 {[%clk 0:02:54.1]}
5... e6 {[%clk 0:02:54.8]} 6. Nge2 {[%clk 0:02:54.5]} 6... Nge7 {[%clk
0:02:54.2]} 7. O-O {[%clk 0:02:55.1]} 7... O-O {[%clk 0:02:53.8]} 8. d3 {[%clk
0:02:55.8]} 8... d6 {[%clk 0:02:53]} 9. Be3 {[%clk 0:02:55.5]} 9... Nd4 {[%clk
0:02:53]} 10. Qd2 {[%clk 0:02:54.1]} 10... Re8 {[%clk 0:02:42.2]} 11. Bh6 {[%clk
0:02:47.8]} 11... Bh8 {[%clk 0:02:41.3]} 12. Nxd4 {[%clk 0:02:48.5]} 12... Bxd4
{[%clk 0:02:31.1]} 13. Ne2 {[%clk 0:02:47.6]} 13... Bh8 {[%clk 0:02:28.4]} 14.
f4 {[%clk 0:02:47.5]} 14... Rb8 {[%clk 0:02:22.5]} 15. a4 {[%clk 0:02:46.6]}
15... Qb6 {[%clk 0:01:56.2]} 16. Rab1 {[%clk 0:02:45.6]} 16... Qb3 {[%clk
0:01:39.2]} 17. Nc3 {[%clk 0:02:35.7]} 17... a6 {[%clk 0:01:36.4]} 18. g4 {[%clk
0:02:32.3]} 18... Bd7 {[%clk 0:01:17.1]} 19. f5 {[%clk 0:02:10.4]} 19... Nc6
{[%clk 0:00:46.3]} 20. f6 {[%clk 0:01:37.8]} 20... Ne5 {[%clk 0:00:32.5]} 21. g5
{[%clk 0:01:35.2]} 21... Bxa4 {[%clk 0:00:27.4]} 22. h4 {[%clk 0:01:19.6]} 22...
Bc6 {[%clk 0:00:25]} 23. h5 {[%clk 0:01:19.9]} 23... b5 {[%clk 0:00:24.8]} 24.
hxg6 {[%clk 0:01:19.7]} 24... hxg6 {[%clk 0:00:13.7]} 25. cxb5 {[%clk
0:01:15.7]} 25... axb5 {[%clk 0:00:14.1]} 26. Rbd1 {[%clk 0:01:07.7]} 26... b4
{[%clk 0:00:14.5]} 27. Ne2 {[%clk 0:01:07.6]} 27... Bb5 {[%clk 0:00:12.5]} 28.
Nf4 {[%clk 0:01:07.6]} 28... c4 {[%clk 0:00:11.4]} 29. d4 {[%clk 0:01:02.6]}
29... c3 {[%clk 0:00:11.3]} 30. bxc3 {[%clk 0:00:58.8]} 30... bxc3 {[%clk
0:00:11.4]} 31. Qf2 {[%clk 0:00:55.2]} 31... Bxf1 {[%clk 0:00:11.5]} 32. Rxf1
{[%clk 0:00:56]} 32... Ng4 {[%clk 0:00:08.2]} 33. Qh4 {[%clk 0:00:54.7]} 33...
Nxh6 {[%clk 0:00:08]} 34. Qxh6 {[%clk 0:00:55.4]} 34... Qb2 {[%clk 0:00:02]} 35.
Nxg6 {[%clk 0:00:53.4]} 35... Bxf6 {[%clk 0:00:01.1]} 36. gxf6 {[%clk 0:00:52]}
36... Qxg2+ {[%clk 0:00:02]} 37. Kxg2 {[%clk 0:00:51.7]} 37... fxg6 {[%clk
0:00:02.9]} 38. f7# {[%clk 0:00:51.3]} 1-0